bitfinex/quotes_SOLUSD_20240824
["timestamp","ask_amount","ask_price","bid_price","bid_amount"]
[1724536963426,0.317471,158.51,158.45,16.3335]
[1724536963591,0.317471,158.51,158.46,65.0]
[1724536964428,0.317471,158.51,158.39,16.3335]
[1724536964589,0.317471,158.51,158.45,6.3108]
[1724536964784,0.317471,158.51,158.46,1.26056021]
[1724536965017,0.317471,158.51,158.41,1.26173238]
[1724536965202,0.317471,158.51,158.5,6.3091]
[1724536965709,0.317471,158.51,158.43,38.15046763]
[1724536965917,0.317471,158.51,158.5,6.3091]
[1724536966802,0.317471,158.51,158.5,71.3091]
[1724536969497,0.317471,158.51,158.44,16.3335]
[1724536969713,0.317471,158.51,158.48,6.3095]
[1724536970116,0.317471,158.51,158.49,6.3095]
[1724536971136,0.317471,158.51,158.5,6.3091]
[1724536971648,0.317471,158.51,158.5,51.3091]
[1724536971808,0.317471,158.51,158.5,6.3091]
[1724536972011,0.317471,158.51,158.5,51.3091]
[1724536973327,0.817471,158.67,158.51,22.8918]
[1724536973529,6.3035,158.64,158.57,6.3063]
[1724536974245,6.3031,158.65,158.58,6.97983569]
[1724536974432,6.3036,158.64,158.56,6.3064]
[1724536974640,37.70650211,158.67,158.52,20.0]
[1724536974809,36.88903111,158.64,158.55,6.307]
[1724536975548,36.88903111,158.64,158.52,20.0]
[1724536975549,37.70650211,158.67,158.52,20.0]
[1724536975840,0.817471,158.67,158.53,45.0]
[1724536976046,0.817471,158.67,158.55,36.88903111]
[1724536976338,6.3028,158.66,158.59,6.3051]
[1724536976547,6.3036,158.64,158.56,65.0]
[1724536977044,6.3036,158.64,158.51,22.8918]
[1724536977045,37.70650211,158.67,158.51,22.8918]
[1724536977216,37.70650211,158.67,158.52,65.0]
[1724536977534,0.817471,158.67,158.52,65.0]
[1724536977863,0.817471,158.67,158.54,36.88903111]
[1724536978144,0.817471,158.67,158.61,6.3047]
[1724536978347,0.817471,158.67,158.62,16.602]
[1724536978639,0.817471,158.67,158.57,59.78083111]
[1724536978822,0.817471,158.67,158.58,65.0]
[1724536979844,0.817471,158.67,158.62,6.3043]
[1724536980229,0.817471,158.67,158.63,6.3039]
[1724536980751,0.817471,158.67,158.64,0.89653686]
[1724536980924,0.817471,158.67,158.65,0.89648034]
[1724536981128,0.817471,158.67,158.62,1.2602306]
[1724536981327,0.817471,158.67,158.62,46.2602306]
[1724536981547,0.817471,158.67,158.62,45.0]
[1724536981753,0.817471,158.67,158.57,22.8918]
[1724536981926,0.817471,158.67,158.61,6.3046]
[1724536982335,0.817471,158.67,158.58,20.0]
[1724536982336,0.817471,158.67,158.63,6.3039]
[1724536982724,0.817471,158.67,158.64,6.3033]
[1724536982933,0.817471,158.67,158.62,6.304]
[1724536983337,0.817471,158.67,158.64,6.3035]
[1724536983549,0.817471,158.67,158.65,6.3031]
[1724536983929,0.817471,158.67,158.66,6.3027]
[1724536986542,0.817471,158.67,158.65,6.3031]
[1724536986854,0.817471,158.67,158.66,6.3027]
[1724536991567,0.817471,158.67,158.66,71.3027]
[1724536992255,0.817471,158.67,158.66,124.4617713]
[1724536993054,0.817471,158.67,158.66,26.3027]
[1724536993440,0.817471,158.67,158.62,16.5507]
[1724536993762,0.817471,158.67,158.66,6.3027]
[1724536994533,22.482171,158.83,158.75,6.2991]
[1724536994734,22.482171,158.83,158.73,6.2996]
[1724536994735,6.2969,158.81,158.73,6.2996]
[1724536994951,28.778571,158.83,158.7,30.5379713]
[1724536995148,22.482171,158.83,158.75,6.2991]
[1724536995435,22.482171,158.83,158.71,65.0]
[1724536995436,6.2972,158.8,158.73,6.2998]
[1724536995650,6.2968,158.81,158.74,6.2995]
[1724536996551,6.2964,158.82,158.75,51.2991]
[1724536996767,6.2964,158.82,158.75,6.2991]
[1724536997155,6.2969,158.81,158.74,6.2996]
[1724536997341,6.2965,158.82,158.75,51.299]
[1724536997536,6.2964,158.82,158.74,6.2992]
[1724536997760,6.2964,158.82,158.75,45.0]
[1724536998362,7.414071,158.83,158.77,6.2983]
[1724536998861,7.414071,158.83,158.75,45.0]
[1724536998862,13.710171,158.83,158.75,51.2991]
[1724536999069,6.2965,158.82,158.75,51.2991]
[1724536999242,6.2965,158.82,158.75,6.2991]
[1724536999453,7.414071,158.83,158.73,30.5379713]
[1724536999751,7.414071,158.83,158.78,6.2979]
[1724537000377,7.414071,158.83,158.76,6.2984]
[1724537000745,7.414071,158.83,158.74,71.2994]
[1724537001062,6.2966,158.82,158.74,71.2994]
[1724537001258,6.2966,158.82,158.74,65.0]
[1724537002757,7.414071,158.83,158.74,65.0]
[1724537002957,7.414071,158.83,158.74,51.2995]
[1724537003255,7.414071,158.83,158.73,6.3]
[1724537003973,6.2988,158.76,158.67,22.6211]
[1724537004150,6.2984,158.77,158.7,6.3011]
[1724537004351,6.2984,158.77,158.71,6.3007]
[1724537004658,23.154971,158.83,158.74,6.2995]
[1724537004970,6.2968,158.81,158.74,6.2995]
[1724537005270,7.414071,158.83,158.76,6.2985]
[1724537005448,13.710171,158.83,158.76,6.2985]
[1724537006245,6.2968,158.81,158.74,6.2992]
[1724537006452,6.2972,158.8,158.73,6.2998]
[1724537006852,6.2972,158.8,158.74,6.2995]
[1724537007664,6.2972,158.8,158.67,53.1590713]
[1724537007665,46.2800713,158.81,158.67,22.6211]
[1724537007853,30.5379713,158.81,158.67,16.5507]
[1724537008055,7.414071,158.83,158.69,30.5379713]
[1724537008458,6.2976,158.8,158.73,6.2996]
[1724537008843,30.5379713,158.81,158.69,6.3015]
[1724537009065,30.5379713,158.81,158.67,16.5507]
[1724537009066,45.0,158.8,158.67,16.5507]
[1724537009263,6.2996,158.74,158.67,6.302]
[1724537009483,6.2991,158.76,158.65,6.0704]
[1724537009651,60.7432,158.8,158.65,6.0704]
[1724537009652,6.2975,158.8,158.73,6.2999]
[1724537010681,22.482171,158.83,158.75,6.299]
[1724537010682,6.2964,158.82,158.75,6.299]
[1724537010976,7.414071,158.83,158.77,6.2983]
[1724537011293,7.414071,158.83,158.74,45.0]
[1724537011294,0.817471,158.83,158.78,45.0]
[1724537011464,7.113571,158.83,158.77,6.2983]
[1724537011778,0.817471,158.83,158.78,45.0]
[1724537012081,0.817471,158.83,158.81,6.2968]
[1724537012262,0.817471,158.83,158.79,6.2972]
[1724537012468,0.817471,158.83,158.74,51.3577]
[1724537012469,0.817471,158.83,158.8,51.2971]
[1724537012663,0.817471,158.83,158.8,6.2971]
[1724537013157,0.817471,158.83,158.8,6.2972]
[1724537013352,0.817471,158.83,158.75,0.74708888]
[1724537013558,0.817471,158.83,158.77,6.298]
[1724537013858,0.817471,158.83,158.78,45.0]
[1724537014060,0.817471,158.83,158.78,6.2979]
[1724537014959,0.817471,158.83,158.74,51.3577]
[1724537015157,0.817471,158.83,158.72,16.5395]
[1724537015394,31.3554423,158.83,158.72,16.5395]
[1724537015752,30.5379713,158.8,158.69,6.3013]
[1724537015968,30.5379713,158.8,158.68,16.5395]
[1724537015969,30.5379713,158.8,158.71,6.3007]
[1724537016171,6.2984,158.77,158.7,6.3011]
[1724537016375,6.2984,158.77,158.69,6.3015]
[1724537016683,6.6024,158.78,158.66,6.3577]
[1724537016987,12.9004,158.78,158.71,6.3007]
[1724537017153,12.9004,158.78,158.72,1.25971752]
[1724537017485,6.6024,158.78,158.68,30.5379713]
[1724537017655,6.6024,158.78,158.66,6.3577]
[1724537018088,6.6024,158.78,158.72,6.3]
[1724537018458,6.6024,158.78,158.73,51.2999]
[1724537018659,6.6024,158.78,158.66,6.3577]
[1724537018958,6.6024,158.78,158.67,65.0]
[1724537019154,6.6024,158.78,158.72,6.3003]
[1724537019475,6.6024,158.78,158.73,6.2996]
[1724537019659,6.6024,158.78,158.67,65.0]
[1724537019860,6.6024,158.78,158.67,20.0]
[1724537020368,6.2988,158.76,158.67,20.0]
[1724537020779,6.2993,158.75,158.68,6.3019]
[1724537021157,6.3,158.73,158.66,6.3024]
[1724537021384,1.52946833,158.76,158.64,16.5395]
[1724537021589,30.5379713,158.74,158.59,45.9531713]
[1724537021793,6.302,158.68,158.61,6.3044]
[1724537022089,6.302,158.68,158.59,15.4152]
[1724537022090,15.0557,158.73,158.62,30.5379713]
[1724537022265,30.5379713,158.77,158.62,31.79799944]
[1724537022456,6.6024,158.78,158.71,6.3007]
[1724537022870,6.6024,158.78,158.7,6.3011]
[1724537023076,6.2988,158.76,158.69,6.3015]
[1724537023468,7.82826833,158.76,158.69,6.3015]
[1724537024064,6.2992,158.75,158.68,6.3019]
[1724537025588,6.2996,158.74,158.66,6.3023]
[1724537025975,6.2996,158.74,158.67,6.3022]
[1724537026173,30.5379713,158.77,158.63,3.73475301]
[1724537026362,30.5379713,158.77,158.63,67.95031342]
[1724537026693,6.2989,158.76,158.63,65.0]
[1724537027066,6.2992,158.75,158.69,6.3015]
[1724537027269,1.52946833,158.74,158.65,6.3027]
[1724537027464,7.82926833,158.74,158.66,71.3027]
[1724537027663,6.3,158.73,158.66,6.3027]
[1724537028165,6.3004,158.72,158.66,6.3027]
[1724537028496,6.3,158.73,158.66,6.3027]
[1724537029287,6.3004,158.72,158.63,20.0]
[1724537029485,6.3012,158.7,158.59,15.4152]
[1724537029790,36.8387713,158.71,158.64,6.3035]
[1724537030099,36.8387713,158.71,158.6,2.95090175]
[1724537030100,30.5379713,158.74,158.6,4.21117314]
[1724537030562,30.5379713,158.74,158.6,2.95090175]
[1724537030760,6.3003,158.73,158.66,6.3024]
[1724537030958,30.5379713,158.74,158.65,6.3031]
[1724537031195,30.5379713,158.74,158.59,15.4152]
[1724537031487,6.3019,158.69,158.59,15.4152]
[1724537031903,6.3024,158.67,158.57,6.5217]
[1724537032065,6.3024,158.67,158.56,2.95133755]
[1724537032066,30.5379713,158.65,158.56,2.95133755]
[1724537032269,6.3048,158.61,158.54,6.3074]
[1724537032472,30.5379713,158.62,158.55,6.3071]
[1724537032473,36.8423713,158.62,158.55,6.3071]
[1724537032771,6.3039,158.64,158.57,6.3061]
[1724537032981,6.3035,158.64,158.57,6.3061]
[1724537033200,6.0473,158.69,158.62,6.3043]
[1724537033399,6.0473,158.69,158.52,4.21290372]
[1724537033400,6.3021,158.68,158.57,30.5379713]
[1724537033696,6.0473,158.69,158.54,30.5379713]
[1724537033697,6.3032,158.65,158.54,30.5379713]
[1724537033870,6.3032,158.65,158.51,290.3379713]
[1724537034073,6.3038,158.64,158.57,6.3062]
[1724537034372,30.5379713,158.66,158.57,6.3063]
[1724537034778,6.3033,158.65,158.58,6.3059]
[1724537035515,30.5379713,158.63,158.52,2.95195368]
[1724537035685,7.83386833,158.62,158.55,6.3067]
[1724537036005,7.83386833,158.62,158.54,6.3075]
[1724537036006,6.3044,158.62,158.54,6.3075]
[1724537036173,6.3044,158.62,158.55,20.0]
[1724537036367,6.3044,158.62,158.54,6.3075]
[1724537036571,21.4676,158.61,158.54,6.3075]
[1724537036772,27.7723,158.61,158.54,6.3075]
[1724537037403,30.5379713,158.6,158.54,6.3075]
[1724537037595,36.8432713,158.6,158.51,2.9527337]
[1724537038198,36.8432713,158.6,158.51,9.2611337]
[1724537038402,1.52946833,158.59,158.52,6.3083]
[1724537038598,21.4676,158.61,158.54,6.3075]
[1724537039302,27.7724,158.61,158.54,6.3075]
[1724537039505,6.0473,158.61,158.55,1.26125649]
[1724537039674,6.0473,158.61,158.57,6.3059]
[1724537039874,1.52946833,158.6,158.54,6.3075]
[1724537040306,6.0473,158.61,158.51,22.9527337]
[1724537040475,12.352,158.61,158.54,6.3072]
[1724537040682,1.52946833,158.6,158.54,6.3072]
[1724537040991,12.352,158.61,158.55,6.307]
[1724537041175,6.0473,158.61,158.55,6.307]
[1724537041803,21.7678,158.65,158.56,1.26112727]
[1724537042103,30.5379713,158.63,158.51,2.9527337]
[1724537042314,21.7678,158.65,158.58,6.3058]
[1724537042478,21.7678,158.65,158.59,6.3054]
[1724537043012,6.3475,158.65,158.54,30.5379713]
[1724537043314,6.3475,158.65,158.55,65.0]
[1724537043611,6.3475,158.65,158.56,6.3067]
[1724537043809,6.3475,158.65,158.55,20.0]
[1724537043982,6.3475,158.65,158.58,6.3059]
[1724537043983,12.6509,158.65,158.58,6.3059]
[1724537044705,51.3036,158.64,158.58,6.3059]
[1724537045180,1.52946833,158.63,158.58,6.3059]
[1724537045375,1.52946833,158.63,158.48,16.5529]
[1724537045376,6.3059,158.58,158.48,16.5529]
[1724537045603,30.5379713,158.6,158.49,1.26147991]
[1724537045812,22.6193,158.62,158.55,6.3071]
[1724537046015,22.6193,158.62,158.54,6.3075]
[1724537046313,6.3052,158.6,158.52,6.3083]
[1724537046510,36.8442713,158.58,158.46,6.3371]
[1724537046718,30.5379713,158.58,158.5,6.3091]
[1724537047219,30.5379713,158.58,158.46,6.3371]
[1724537047390,32.0759,158.62,158.46,6.3371]
[1724537047391,30.5379713,158.55,158.46,6.3105]
[1724537047592,30.5379713,158.55,158.44,16.5529]
[1724537047798,51.3475,158.57,158.45,1.26167954]
[1724537048015,6.3475,158.57,158.45,1.26167954]
[1724537048211,12.6525,158.61,158.54,6.3072]
[1724537048422,6.3475,158.65,158.55,1.26119081]
[1724537048591,6.3475,158.65,158.58,6.3055]
[1724537048799,6.3475,158.65,158.53,16.5529]
[1724537049124,22.6173,158.67,158.59,6.3055]
[1724537049325,22.6173,158.67,158.57,6.3059]
[1724537049326,16.3146,158.67,158.57,6.3059]
[1724537049624,36.8419713,158.63,158.54,20.0]
[1724537049796,36.8419713,158.63,158.56,6.3064]
[1724537050202,38.37143963,158.63,158.56,6.3064]
[1724537050397,32.06743963,158.63,158.52,20.0]
[1724537050602,12.5697,158.59,158.44,21.9611]
[1724537050923,6.2638,158.63,158.5,30.5379713]
[1724537051221,6.2638,158.63,158.51,1.2612165]
[1724537051222,36.8017713,158.63,158.51,1.2612165]
[1724537051524,36.8017713,158.63,158.48,1.2611732]
[1724537051728,45.0,158.62,158.47,30.5379713]
[1724537051926,30.5379713,158.6,158.44,52.4990713]
[1724537052098,6.3048,158.61,158.47,30.5379713]
[1724537052300,51.3043,158.62,158.55,6.3071]
[1724537052497,36.8017713,158.63,158.47,30.5379713]
[1724537052818,6.3047,158.61,158.54,6.3071]
[1724537053001,6.3047,158.61,158.44,48.55361635]
[1724537053002,30.5379713,158.61,158.44,48.55361635]
[1724537053326,6.2638,158.63,158.48,30.5379713]
[1724537053531,6.2638,158.63,158.59,6.3054]
[1724537053897,22.6173,158.67,158.6,6.3051]
[1724537054221,6.3028,158.66,158.59,6.3055]
[1724537054412,16.3146,158.67,158.57,6.3059]
[1724537054413,6.3037,158.64,158.57,6.3059]
[1724537054618,6.3045,158.62,158.55,6.3068]
[1724537054821,1.52946833,158.61,158.55,6.3068]
[1724537054994,17.84406833,158.67,158.51,30.5379713]
[1724537055197,17.84406833,158.67,158.52,65.0]
[1724537055198,30.5379713,158.65,158.52,65.0]
[1724537055428,6.304,158.63,158.56,6.3067]
[1724537055725,17.84406833,158.67,158.54,6.3071]
[1724537055726,6.3047,158.61,158.54,6.3071]
[1724537055931,1.52946833,158.6,158.49,15.7891]
[1724537056093,6.2638,158.59,158.49,15.7891]
[1724537056290,6.2638,158.59,158.54,6.3075]
[1724537056717,6.2638,158.59,158.52,6.3079]
[1724537057325,6.2638,158.59,158.54,6.3075]
[1724537057500,44.63683963,158.59,158.52,6.3083]
[1724537057713,43.1073713,158.59,158.52,6.3083]
[1724537058533,6.3061,158.58,158.45,36.7099713]
[1724537058828,36.8017713,158.59,158.45,36.7099713]
[1724537058829,36.8017713,158.59,158.46,21.26155753]
[1724537059003,30.5379713,158.62,158.48,30.5379713]
[1724537059199,30.5379713,158.62,158.49,21.26125064]
[1724537059405,6.2638,158.63,158.49,21.26125064]
[1724537059602,6.2638,158.63,158.6,6.3051]
[1724537059796,6.2638,158.63,158.59,6.3055]
[1724537060002,6.2638,158.63,158.52,15.7891]
[1724537060228,6.2638,158.63,158.53,65.0]
[1724537061102,6.2638,158.63,158.53,89.46046212]
[1724537061305,6.2638,158.63,158.58,6.3058]
[1724537061505,24.46046212,158.62,158.53,20.0]
[1724537061703,24.46046212,158.62,158.5,20.0]
[1724537061914,30.76496212,158.62,158.56,6.3067]
[1724537062533,6.3045,158.62,158.56,6.3067]
[1724537062836,43.14859022,158.63,158.56,6.3067]
[1724537063323,36.84459022,158.63,158.57,6.3062]
[1724537063535,12.5678,158.63,158.57,6.3062]
[1724537064305,6.3044,158.62,158.51,45.0]
[1724537064534,36.84459022,158.63,158.52,20.0]
[1724537064732,6.3051,158.61,158.52,20.0]
[1724537064939,6.3051,158.61,158.48,45.65339022]
[1724537065116,32.11025855,158.6,158.48,15.0726]
[1724537065515,45.0,158.59,158.48,15.0726]
[1724537065831,36.88629022,158.6,158.48,15.0726]
[1724537066037,6.3051,158.61,158.54,6.3075]
[1724537066347,6.3051,158.6,158.54,6.3075]
[1724537066543,6.2638,158.63,158.55,1.26041639]
[1724537066842,16.3146,158.67,158.61,6.3047]
[1724537067030,22.6169,158.67,158.61,6.3047]
[1724537067335,22.6169,158.67,158.6,6.305]
[1724537067635,22.6169,158.67,158.61,6.3046]
[1724537067636,16.3146,158.67,158.61,6.3046]
[1724537067838,6.302,158.68,158.62,6.3043]
[1724537068440,6.3023,158.67,158.6,6.3051]
[1724537068638,36.95439022,158.69,158.57,15.0726]
[1724537068952,6.3032,158.65,158.58,20.0]
[1724537069119,30.58079022,158.66,158.55,6.4242]
[1724537069437,6.304,158.63,158.56,26.3067]
[1724537069645,6.304,158.63,158.56,6.3067]
[1724537070410,1.52946833,158.62,158.53,15.0726]
[1724537070633,6.3048,158.61,158.55,6.3071]
[1724537070837,30.58079022,158.63,158.55,6.3071]
[1724537071031,7.83416833,158.62,158.55,6.3071]
[1724537071742,1.52946833,158.62,158.53,21.3801]
[1724537071942,62.82286833,158.62,158.53,6.3075]
[1724537072146,6.3056,158.59,158.53,6.3075]
[1724537072436,67.5979,158.62,158.51,6.4242]
[1724537072637,67.5979,158.62,158.56,6.3067]
[1724537073237,51.3045,158.62,158.56,6.3067]
[1724537073830,51.3045,158.62,158.55,6.3071]
[1724537074226,6.3048,158.61,158.55,6.3071]
[1724537074440,1.52946833,158.6,158.48,15.5647]
[1724537074609,30.58079022,158.58,158.48,15.5647]
[1724537074812,30.58079022,158.58,158.48,20.21164629]
[1724537075037,30.58079022,158.58,158.49,4.64694629]
[1724537075243,36.88709022,158.58,158.51,6.3087]
[1724537075416,36.88799022,158.55,158.44,275.3647]
[1724537075621,38.41745855,158.55,158.45,12.11956048]
[1724537075812,36.88799022,158.55,158.45,4.64765665]
[1724537076009,1.52946833,158.54,158.45,4.64765665]
[1724537077145,1.52946833,158.54,158.46,4.64765665]
[1724537077357,1.52946833,158.54,158.48,6.3095]
[1724537077815,30.58079022,158.52,158.46,4.64765665]
[1724537078022,1.52946833,158.51,158.45,4.64765665]
[1724537078248,1.52946833,158.51,158.46,4.64765665]
[1724537078433,6.3087,158.52,158.45,6.3107]
[1724537078625,16.2934,158.57,158.49,6.3094]
[1724537078817,22.6,158.57,158.5,7.57072121]
[1724537079018,22.6,158.57,158.5,6.309]
[1724537079442,16.2934,158.57,158.48,6.3096]
[1724537079747,45.0,158.56,158.48,6.3096]
[1724537080113,6.3072,158.55,158.48,6.3096]
[1724537080720,36.88799022,158.55,158.48,6.3096]
[1724537080921,6.3076,158.54,158.47,6.3103]
[1724537081127,30.58079022,158.55,158.46,6.3107]
[1724537081450,30.58079022,158.52,158.44,4.64765665]
[1724537081632,30.58079022,158.49,158.42,4.64765665]
[1724537081950,30.58079022,158.49,158.41,7.47190383]
[1724537081951,30.58079022,158.49,158.43,4.6486991]
[1724537082117,6.1073,158.51,158.42,4.6486991]
[1724537082445,6.3083,158.53,158.46,6.3105]
[1724537082652,30.58079022,158.54,158.46,6.3105]
[1724537082964,30.58079022,158.54,158.47,6.3102]
[1724537083117,6.1073,158.55,158.48,7.57138251]
[1724537083446,6.1073,158.55,158.47,6.3102]
[1724537083647,6.3083,158.52,158.45,10.9593991]
[1724537083843,12.4144,158.55,158.48,6.3095]
[1724537084024,12.4144,158.55,158.49,6.3094]
[1724537084025,6.1073,158.55,158.49,6.3094]
[1724537084251,7.63676833,158.55,158.44,12.12231153]
[1724537084553,6.1073,158.55,158.45,24.6486991]
[1724537084758,6.3072,158.55,158.49,6.3095]
[1724537085143,6.3072,158.55,158.48,6.3099]
[1724537085457,1.52946833,158.56,158.48,6.3099]
[1724537085638,46.52946833,158.56,158.48,6.3099]
[1724537086043,6.3075,158.55,158.48,6.3099]
[1724537086857,36.88829022,158.55,158.48,6.3099]
[1724537087151,6.3075,158.54,158.48,6.3099]
[1724537087360,7.83756833,158.53,158.46,6.3103]
[1724537087732,7.83756833,158.53,158.4,52.77839022]
[1724537087733,75.58079022,158.52,158.44,6.3111]
[1724537087934,1.52946833,158.51,158.44,6.3111]
[1724537088336,7.83816833,158.51,158.44,6.3111]
[1724537088849,30.58079022,158.49,158.43,6.3117]
[1724537089049,6.3087,158.51,158.44,6.3114]
[1724537089246,45.0,158.5,158.44,6.3114]
[1724537089764,6.3095,158.49,158.41,12.12187214]
[1724537090155,6.31,158.48,158.41,12.12187214]
[1724537090476,1.02946833,158.47,158.41,12.12187214]
[1724537090638,1.02946833,158.47,158.37,12.12187214]
[1724537090838,6.31,158.48,158.38,4.6485326]
[1724537091059,36.89029022,158.49,158.39,4.6485326]
[1724537091372,36.89029022,158.49,158.37,7.47333954]
[1724537091373,45.0,158.48,158.4,6.3127]
[1724537091575,45.0,158.48,158.4,6.313]
[1724537091576,36.89179022,158.46,158.4,6.313]
[1724537092077,1.02946833,158.45,158.4,6.313]
[1724537092275,1.02946833,158.45,158.39,6.3134]
[1724537092567,36.89179022,158.46,158.39,6.3134]
[1724537093073,36.89179022,158.46,158.4,6.313]
[1724537093662,30.58079022,158.49,158.37,12.12187214]
[1724537093854,36.88949022,158.52,158.46,6.3107]
[1724537094051,36.88949022,158.52,158.44,6.3111]
[1724537094374,36.88949022,158.52,158.39,12.12187214]
[1724537094675,6.3087,158.51,158.43,6.3115]
[1724537094853,6.3092,158.5,158.4,20.0]
[1724537095056,6.3092,158.5,158.43,6.3115]
[1724537095253,6.3092,158.5,158.44,6.3115]
[1724537095457,5.8088,158.51,158.44,6.3115]
[1724537095772,45.0,158.5,158.44,6.3115]
[1724537096750,5.8088,158.51,158.45,6.311]
[1724537097071,7.29736833,158.54,158.49,6.3091]
[1724537097072,6.2679,158.54,158.49,6.3091]
[1724537097448,7.29736833,158.54,158.41,12.122342]
[1724537097659,6.3083,158.53,158.46,6.3103]
[1724537097864,7.33776833,158.52,158.46,6.3103]
[1724537098067,37.91855855,158.52,158.46,6.3103]
[1724537098254,6.3088,158.51,158.43,4.64880006]
[1724537098578,6.3088,158.51,158.43,6.3119]
[1724537098579,45.0,158.5,158.43,6.3119]
[1724537098760,46.02946833,158.5,158.44,20.0]
[1724537099081,30.58079022,158.49,158.44,20.0]
[1724537099446,30.58079022,158.49,158.43,6.3119]
[1724537099673,30.58079022,158.49,158.44,20.0]
[1724537100074,30.58079022,158.49,158.44,26.3115]
[1724537100578,30.58079022,158.52,158.44,20.0]
[1724537100764,6.308,158.53,158.46,6.3106]
[1724537101287,6.3084,158.52,158.45,6.311]
[1724537101578,7.29736833,158.54,158.41,12.12213374]
[1724537101774,36.88989022,158.51,158.42,20.0]
[1724537101982,6.2679,158.54,158.49,6.3095]
[1724537102167,6.2679,158.54,158.43,4.64862904]
[1724537102477,22.0998,158.57,158.45,15.2226]
[1724537102651,22.0998,158.57,158.46,20.0]
[1724537103021,6.2679,158.58,158.47,4.6474021]
[1724537103147,52.07639022,158.61,158.47,4.6474021]
[1724537103351,1.02946833,158.6,158.48,45.0]
[1724537103752,1.02946833,158.6,158.49,20.0]
[1724537104081,45.77159022,158.61,158.49,20.0]
[1724537104082,45.77159022,158.61,158.54,6.3075]
[1724537104256,52.07639022,158.61,158.55,6.307]
[1724537104450,52.07639022,158.61,158.53,6.3075]
[1724537104764,52.07639022,158.61,158.49,20.0]
[1724537104765,6.3059,158.59,158.49,20.0]
[1724537104973,52.07659022,158.61,158.53,6.3078]
[1724537105455,6.3053,158.6,158.53,6.3078]
[1724537105651,30.58079022,158.58,158.48,20.0]
[1724537105851,1.02946833,158.6,158.48,20.0]
[1724537105852,30.58079022,158.55,158.48,20.0]
[1724537106048,30.58079022,158.55,158.47,20.0]
[1724537106694,36.88799022,158.55,158.46,6.1242]
[1724537106865,30.58079022,158.52,158.42,13.59648081]
[1724537107062,30.58079022,158.49,158.42,10.77257369]
[1724537107266,30.58079022,158.49,158.45,6.3111]
[1724537107473,30.58079022,158.5,158.45,6.3111]
[1724537107987,30.58079022,158.5,158.45,6.311]
[1724537109888,30.58079022,158.5,158.46,6.3106]
[1724537110068,30.58079022,158.53,158.48,6.3098]
[1724537110267,36.88879022,158.53,158.46,6.3103]
[1724537111088,30.58079022,158.53,158.43,4.64834724]
[1724537111393,6.4938,158.58,158.44,1.26181376]
[1724537111560,6.4938,158.58,158.52,6.3081]
[1724537111765,30.58079022,158.59,158.54,6.3075]
[1724537112156,21.4957,158.61,158.54,6.3075]
[1724537112360,30.58079022,158.62,158.5,11.15219663]
[1724537112587,7.33426833,158.61,158.51,20.0]
[1724537112966,30.58079022,158.62,158.55,6.3071]
[1724537113162,36.88509022,158.62,158.55,6.3071]
[1724537113364,36.88509022,158.62,158.56,6.3067]
[1724537114591,6.3033,158.65,158.52,1.12711976]
[1724537114896,36.88409022,158.65,158.57,6.3059]
[1724537116494,6.3036,158.64,158.57,6.3059]
[1724537116670,36.88399022,158.65,158.58,6.3057]
[1724537117285,45.0,158.64,158.58,6.3057]
[1724537117880,51.3035,158.64,158.58,6.3057]
[1724537118278,6.3047,158.61,158.53,4.6463385]
[1724537118491,6.3047,158.61,158.54,6.3071]
[1724537118492,1.02946833,158.6,158.54,6.3071]
[1724537118876,36.88519022,158.62,158.55,6.3071]
[1724537120162,36.88519022,158.62,158.56,6.3066]
[1724537121086,46.02946833,158.64,158.57,6.3059]
[1724537121276,22.0084,158.66,158.51,4.64641428]
[1724537121277,30.58079022,158.65,158.51,35.2272045]
[1724537121587,30.58079022,158.65,158.6,6.3051]